[Event "Early-Titled-Tuesday-Blitz-March-26-2024"]
[Site "Chess.com"]
[Date "2024.03.26"]
[Round "6"]
[White "DavidGavrilescu18"]
[Black "1mbl4"]
[Result "1-0"]
[WhiteElo "2770"]
[BlackElo "2572"]
[TimeControl "180+1"]
[EndTime "9:04:23 PDT"]
[Termination "DavidGavrilescu18 won by checkmate"]

1. e4 {[%clk 0:03:00.6]} 1... g6 {[%clk 0:02:57.1]} 2. d4 {[%clk 0:02:58.4]}
2... Bg7 {[%clk 0:02:57.3]} 3. Nf3 {[%clk 0:02:58.4]} 3... d6 {[%clk 0:02:57.6]}
4. Bd3 {[%clk 0:02:58.5]} 4... a6 {[%clk 0:02:56.8]} 5. O-O {[%clk 0:02:58.7]}
5... b5 {[%clk 0:02:56.6]} 6. a4 {[%clk 0:02:58.6]} 6... b4 {[%clk 0:02:56.1]}
7. c3 {[%clk 0:02:59.2]} 7... bxc3 {[%clk 0:02:49.5]} 8. Nxc3 {[%clk 0:02:55.8]}
8... Nd7 {[%clk 0:02:44]} 9. Re1 {[%clk 0:02:53.8]} 9... e6 {[%clk 0:02:39.2]}
10. e5 {[%clk 0:02:40.3]} 10... d5 {[%clk 0:02:33.8]} 11. b4 {[%clk 0:02:38.5]}
11... Ne7 {[%clk 0:02:25.9]} 12. Ba3 {[%clk 0:02:38.3]} 12... O-O {[%clk
0:02:03.8]} 13. b5 {[%clk 0:02:29.5]} 13... Nb6 {[%clk 0:02:02.9]} 14. Rc1
{[%clk 0:02:12.3]} 14... Bb7 {[%clk 0:01:56.9]} 15. Nd2 {[%clk 0:01:27.1]} 15...
Bh6 {[%clk 0:01:53.5]} 16. Rc2 {[%clk 0:01:25.6]} 16... Re8 {[%clk 0:01:42.4]}
17. a5 {[%clk 0:01:22.6]} 17... Nc4 {[%clk 0:01:41.9]} 18. Nxc4 {[%clk
0:01:22.9]} 18... dxc4 {[%clk 0:01:41.9]} 19. Bxc4 {[%clk 0:01:23.8]} 19... Nf5
{[%clk 0:01:33.5]} 20. Ne4 {[%clk 0:01:20.4]} 20... Bxe4 {[%clk 0:00:33]} 21.
Rxe4 {[%clk 0:01:21.3]} 21... axb5 {[%clk 0:00:33.6]} 22. Bxb5 {[%clk
0:01:21.5]} 22... Rxa5 {[%clk 0:00:34.2]} 23. Bxe8 {[%clk 0:01:21.7]} 23... Rxa3
{[%clk 0:00:34.3]} 24. Bc6 {[%clk 0:01:22.1]} 24... Qb8 {[%clk 0:00:30]} 25. g3
{[%clk 0:01:18.6]} 25... Qa7 {[%clk 0:00:27.1]} 26. Kg2 {[%clk 0:01:13.6]} 26...
Ra1 {[%clk 0:00:26]} 27. Qd3 {[%clk 0:01:11.8]} 27... Bf8 {[%clk 0:00:16.2]} 28.
d5 {[%clk 0:01:04.8]} 28... Ra3 {[%clk 0:00:12.4]} 29. Qd2 {[%clk 0:01:01.3]}
29... Bh6 {[%clk 0:00:10.6]} 30. Qb4 {[%clk 0:00:58.2]} 30... Bf8 {[%clk
0:00:09]} 31. Qc4 {[%clk 0:00:53.3]} 31... Ng7 {[%clk 0:00:01.2]} 32. dxe6
{[%clk 0:00:49.4]} 32... Nxe6 {[%clk 0:00:02.1]} 33. Bd5 {[%clk 0:00:49.6]}
33... Ng5 {[%clk 0:00:02.4]} 34. Rf4 {[%clk 0:00:43.9]} 34... c6 {[%clk
0:00:02.8]} 35. Bxf7+ {[%clk 0:00:42.8]} 35... Nxf7 {[%clk 0:00:02.6]} 36. e6
{[%clk 0:00:43.2]} 36... Nd6 {[%clk 0:00:02.1]} 37. e7+ {[%clk 0:00:43.6]} 37...
Nxc4 {[%clk 0:00:01.3]} 38. exf8=Q# {[%clk 0:00:44]} 1-0

[Event "Early-Titled-Tuesday-Blitz-March-26-2024"]
[Site "Chess.com"]
[Date "2024.03.26"]
[Round "6"]
[White "Kapitan_Bayan"]
[Black "tusplingher"]
[Result "0-1"]
[WhiteElo "2285"]
[BlackElo "2501"]
[TimeControl "180+1"]
[EndTime "9:04:23 PDT"]
[Termination "tusplingher won by checkmate"]

1. e4 {[%clk 0:03:00.9]} 1... c5 {[%clk 0:02:59.2]} 2. Nf3 {[%clk 0:02:58.9]}
2... d6 {[%clk 0:02:59.5]} 3. d4 {[%clk 0:02:58.3]} 3... Nf6 {[%clk 0:02:59.4]}
4. Nc3 {[%clk 0:02:56.8]} 4... cxd4 {[%clk 0:02:59.1]} 5. Nxd4 {[%clk
0:02:56.5]} 5... a6 {[%clk 0:02:59.6]} 6. f3 {[%clk 0:02:53.6]} 6... e6 {[%clk
0:02:59.2]} 7. Be3 {[%clk 0:02:52.5]} 7... b5 {[%clk 0:02:59.1]} 8. Qd2 {[%clk
0:02:46.5]} 8... Nbd7 {[%clk 0:02:58.9]} 9. g4 {[%clk 0:02:45.3]} 9... b4 {[%clk
0:02:59.3]} 10. Nce2 {[%clk 0:02:32.4]} 10... h6 {[%clk 0:02:59.6]} 11. Nc6
{[%clk 0:02:27.3]} 11... Qc7 {[%clk 0:02:56.1]} 12. Nxb4 {[%clk 0:02:25.7]}
12... Ne5 {[%clk 0:02:51]} 13. Nd4 {[%clk 0:02:17.9]} 13... Bb7 {[%clk
0:02:27.3]} 14. Nd3 {[%clk 0:01:56.9]} 14... Nc4 {[%clk 0:02:18.5]} 15. Qc3
{[%clk 0:01:54.8]} 15... Rc8 {[%clk 0:02:17.5]} 16. Bf2 {[%clk 0:01:48]} 16...
d5 {[%clk 0:02:07.5]} 17. e5 {[%clk 0:01:03.1]} 17... Nd7 {[%clk 0:02:02.1]} 18.
f4 {[%clk 0:00:56.5]} 18... Nc5 {[%clk 0:01:51.6]} 19. Nxc5 {[%clk 0:00:53.5]}
19... Bxc5 {[%clk 0:01:49.5]} 20. O-O-O {[%clk 0:00:37.5]} 20... O-O {[%clk
0:01:39.5]} 21. h4 {[%clk 0:00:31.5]} 21... Qe7 {[%clk 0:01:16.5]} 22. Qf3
{[%clk 0:00:15.3]} 22... f6 {[%clk 0:01:03.6]} 23. g5 {[%clk 0:00:05.7]} 23...
fxe5 {[%clk 0:00:59.6]} 24. gxh6 {[%clk 0:00:05.4]} 24... Bxd4 {[%clk
0:00:52.4]} 25. hxg7 {[%clk 0:00:03.2]} 25... Bxb2+ {[%clk 0:00:44.6]} 26. Kb1
{[%clk 0:00:03.3]} 26... Rf7 {[%clk 0:00:41.3]} 27. Bxc4 {[%clk 0:00:02.8]}
27... dxc4 {[%clk 0:00:41.4]} 28. Qg4 {[%clk 0:00:02.2]} 28... Qb4 {[%clk
0:00:28.7]} 29. Qxe6 {[%clk 0:00:01.6]} 29... Bc3+ {[%clk 0:00:27.7]} 30. Kc1
{[%clk 0:00:01.9]} 30... Qb2# {[%clk 0:00:27.9]} 0-1

[Event "Early-Titled-Tuesday-Blitz-March-26-2024"]
[Site "Chess.com"]
[Date "2024.03.26"]
[Round "6"]
[White "Vahe_Danielyan"]
[Black "Chessdude1987"]
[Result "0-1"]
[WhiteElo "2625"]
[BlackElo "2414"]
[TimeControl "180+1"]
[EndTime "9:04:24 PDT"]
[Termination "Chessdude1987 won on time"]

1. d4 {[%clk 0:03:00.9]} 1... e6 {[%clk 0:03:00.2]} 2. Nc3 {[%clk 0:02:58.4]}
2... d5 {[%clk 0:02:59.2]} 3. Bf4 {[%clk 0:02:54.8]} 3... Nf6 {[%clk 0:02:58.6]}
4. Nb5 {[%clk 0:02:51.6]} 4... Na6 {[%clk 0:02:58]} 5. e3 {[%clk 0:02:50.7]}
5... c6 {[%clk 0:02:52.5]} 6. Nc3 {[%clk 0:02:49.2]} 6... c5 {[%clk 0:02:49.4]}
7. Nf3 {[%clk 0:02:46.3]} 7... Be7 {[%clk 0:02:44.7]} 8. Bd3 {[%clk 0:02:40.8]}
8... Nh5 {[%clk 0:02:27.2]} 9. Be5 {[%clk 0:02:16.9]} 9... f6 {[%clk 0:02:26.9]}
10. Ng5 {[%clk 0:01:49.1]} 10... g6 {[%clk 0:01:53.5]} 11. Nxh7 {[%clk
0:01:49.1]} 11... Kf7 {[%clk 0:01:46.2]} 12. g4 {[%clk 0:01:09.5]} 12... Rxh7
{[%clk 0:01:27.4]} 13. gxh5 {[%clk 0:01:08.2]} 13... Rxh5 {[%clk 0:01:19.6]} 14.
Bg3 {[%clk 0:01:01.3]} 14... Nb4 {[%clk 0:00:56.7]} 15. Be2 {[%clk 0:00:48.6]}
15... Rh7 {[%clk 0:00:54]} 16. h4 {[%clk 0:00:48.6]} 16... cxd4 {[%clk
0:00:47.3]} 17. exd4 {[%clk 0:00:46.1]} 17... e5 {[%clk 0:00:42.8]} 18. a3
{[%clk 0:00:34.5]} 18... exd4 {[%clk 0:00:39.5]} 19. Nb5 {[%clk 0:00:27.5]}
19... d3 {[%clk 0:00:25.6]} 20. cxd3 {[%clk 0:00:14]} 20... Qa5 {[%clk
0:00:21.5]} 21. Nc3 {[%clk 0:00:07.9]} 21... Nc6 {[%clk 0:00:18.9]} 22. h5
{[%clk 0:00:08.1]} 22... g5 {[%clk 0:00:18]} 23. h6 {[%clk 0:00:04.9]} 23... d4
{[%clk 0:00:16.2]} 24. Qb3+ {[%clk 0:00:05.5]} 24... Kf8 {[%clk 0:00:15]} 25.
O-O {[%clk 0:00:01.8]} 25... dxc3 {[%clk 0:00:13.3]} 0-1

[Event "Early-Titled-Tuesday-Blitz-March-26-2024"]
[Site "Chess.com"]
[Date "2024.03.26"]
[Round "6"]
[White "KorolDimitriy75"]
[Black "Joachim100x"]
[Result "0-1"]
[WhiteElo "2373"]
[BlackElo "2522"]
[TimeControl "180+1"]
[EndTime "9:04:28 PDT"]
[Termination "Joachim100x won on time"]

1. d4 {[%clk 0:03:00.9]} 1... d5 {[%clk 0:02:58.5]} 2. c4 {[%clk 0:03:01.1]}
2... e6 {[%clk 0:02:57.6]} 3. Nc3 {[%clk 0:03:01.6]} 3... c5 {[%clk 0:02:58]} 4.
cxd5 {[%clk 0:03:01.3]} 4... exd5 {[%clk 0:02:58.5]} 5. Nf3 {[%clk 0:03:01.6]}
5... Nf6 {[%clk 0:02:58.5]} 6. g3 {[%clk 0:03:02]} 6... Nc6 {[%clk 0:02:59]} 7.
Bg2 {[%clk 0:03:02.4]} 7... c4 {[%clk 0:02:59]} 8. O-O {[%clk 0:02:55.6]} 8...
Be7 {[%clk 0:02:59.1]} 9. Ne5 {[%clk 0:02:50.1]} 9... O-O {[%clk 0:02:51.1]} 10.
Bg5 {[%clk 0:02:07.7]} 10... Be6 {[%clk 0:02:51]} 11. f4 {[%clk 0:02:03.7]}
11... Rc8 {[%clk 0:02:30]} 12. e3 {[%clk 0:01:40.9]} 12... Nxe5 {[%clk 0:02:17]}
13. fxe5 {[%clk 0:01:40.7]} 13... Ng4 {[%clk 0:02:17.1]} 14. Bxe7 {[%clk
0:01:36.8]} 14... Qxe7 {[%clk 0:02:17.1]} 15. Qd2 {[%clk 0:01:22.1]} 15... Qd7
{[%clk 0:02:13.2]} 16. h3 {[%clk 0:01:11.1]} 16... Nh6 {[%clk 0:02:13.1]} 17.
Kh2 {[%clk 0:01:11.7]} 17... b5 {[%clk 0:02:12.5]} 18. a3 {[%clk 0:01:10.9]}
18... a5 {[%clk 0:02:08.5]} 19. e4 {[%clk 0:00:28.8]} 19... dxe4 {[%clk
0:01:56.3]} 20. Nxe4 {[%clk 0:00:29.7]} 20... Nf5 {[%clk 0:01:50.3]} 21. Rad1
{[%clk 0:00:24.1]} 21... Rfd8 {[%clk 0:01:31.3]} 22. d5 {[%clk 0:00:01.9]} 22...
Bxd5 {[%clk 0:01:28.4]} 23. Nf6+ {[%clk 0:00:01.2]} 23... gxf6 {[%clk
0:01:27.2]} 24. Bxd5 {[%clk 0:00:02.1]} 24... c3 {[%clk 0:01:11.6]} 25. bxc3
{[%clk 0:00:01.5]} 25... Kh8 {[%clk 0:00:45.6]} 26. exf6 {[%clk 0:00:01.4]}
26... Rg8 {[%clk 0:00:38.6]} 27. Qf4 {[%clk 0:00:01.3]} 27... Nxg3 {[%clk
0:00:34.7]} 28. Rg1 {[%clk 0:00:01.3]} 28... Nh5 {[%clk 0:00:30.1]} 29. Qh6
{[%clk 0:00:01.1]} 29... Qd6+ {[%clk 0:00:26.7]} 30. Kh1 {[%clk 0:00:01.2]}
30... Ng3+ {[%clk 0:00:25.3]} 0-1

[Event "Early-Titled-Tuesday-Blitz-March-26-2024"]
[Site "Chess.com"]
[Date "2024.03.26"]
[Round "6"]
[White "UK_23"]
[Black "aljado"]
[Result "1-0"]
[WhiteElo "2403"]
[BlackElo "2155"]
[TimeControl "180+1"]
[EndTime "9:04:32 PDT"]
[Termination "UK_23 won on time"]

1. e4 {[%clk 0:03:00.9]} 1... c5 {[%clk 0:02:59.2]} 2. Nf3 {[%clk 0:03:01.1]}
2... e6 {[%clk 0:02:58.9]} 3. g3 {[%clk 0:03:01.1]} 3... d5 {[%clk 0:02:57.2]}
4. exd5 {[%clk 0:03:02]} 4... exd5 {[%clk 0:02:55.9]} 5. d4 {[%clk 0:03:02.6]}
5... Nc6 {[%clk 0:02:53.8]} 6. Bg2 {[%clk 0:03:02.9]} 6... Bg4 {[%clk 0:02:51]}
7. O-O {[%clk 0:03:02.8]} 7... Nf6 {[%clk 0:02:41.4]} 8. Re1+ {[%clk 0:02:53.5]}
8... Be7 {[%clk 0:02:41.7]} 9. dxc5 {[%clk 0:02:54]} 9... O-O {[%clk 0:02:39.6]}
10. Nc3 {[%clk 0:02:48.4]} 10... Bxc5 {[%clk 0:02:35.1]} 11. Bg5 {[%clk
0:02:48.4]} 11... Nd4 {[%clk 0:01:49.9]} 12. Bxf6 {[%clk 0:02:42.9]} 12... Qxf6
{[%clk 0:01:45.5]} 13. Re3 {[%clk 0:02:21.1]} 13... Nxf3+ {[%clk 0:01:37.3]} 14.
Rxf3 {[%clk 0:02:16.4]} 14... Bxf3 {[%clk 0:01:36.5]} 15. Bxf3 {[%clk
0:02:17.3]} 15... Rad8 {[%clk 0:01:28.2]} 16. Nxd5 {[%clk 0:02:15.3]} 16... Qxb2
{[%clk 0:01:23.5]} 17. Rb1 {[%clk 0:02:13.4]} 17... Qxa2 {[%clk 0:01:21.7]} 18.
Rxb7 {[%clk 0:02:13.4]} 18... Rfe8 {[%clk 0:01:04.7]} 19. Kg2 {[%clk 0:02:12.5]}
19... Qa6 {[%clk 0:00:49.2]} 20. Qb1 {[%clk 0:01:54]} 20... Qd6 {[%clk
0:00:43.6]} 21. c4 {[%clk 0:01:53.3]} 21... Qe5 {[%clk 0:00:39.9]} 22. Qd3
{[%clk 0:01:47]} 22... Qe1 {[%clk 0:00:34.9]} 23. Rb2 {[%clk 0:01:36.8]} 23...
Qe5 {[%clk 0:00:26.1]} 24. Re2 {[%clk 0:01:34.4]} 24... Qd4 {[%clk 0:00:25.1]}
25. Rxe8+ {[%clk 0:01:24.6]} 25... Rxe8 {[%clk 0:00:22.3]} 26. Qc2 {[%clk
0:01:25.5]} 26... Rb8 {[%clk 0:00:18.1]} 27. Qe2 {[%clk 0:01:17.7]} 27... g6
{[%clk 0:00:10.1]} 28. Nc7 {[%clk 0:00:50.8]} 28... Rb2 {[%clk 0:00:06.3]} 29.
Qe8+ {[%clk 0:00:50.7]} 29... Kg7 {[%clk 0:00:05.9]} 30. Kh3 {[%clk 0:00:36.4]}
30... Rxf2 {[%clk 0:00:02.4]} 31. Bd5 {[%clk 0:00:18.6]} 1-0

[Event "Early-Titled-Tuesday-Blitz-March-26-2024"]
[Site "Chess.com"]
[Date "2024.03.26"]
[Round "6"]
[White "HajiyevKanan"]
[Black "sansanathalia"]
[Result "0-1"]
[WhiteElo "2530"]
[BlackElo "2416"]
[TimeControl "180+1"]
[EndTime "9:04:37 PDT"]
[Termination "sansanathalia won by resignation"]

1. d4 {[%clk 0:02:39.8]} 1... d5 {[%clk 0:02:47.2]} 2. Nf3 {[%clk 0:02:38.3]}
2... e6 {[%clk 0:02:44.6]} 3. c4 {[%clk 0:02:31.9]} 3... c6 {[%clk 0:02:37.7]}
4. cxd5 {[%clk 0:02:32.8]} 4... exd5 {[%clk 0:02:35.7]} 5. Nc3 {[%clk
0:02:33.7]} 5... Nf6 {[%clk 0:02:31.9]} 6. Qc2 {[%clk 0:02:32.8]} 6... Be7
{[%clk 0:02:31.4]} 7. Bf4 {[%clk 0:02:32.9]} 7... O-O {[%clk 0:02:30.7]} 8. e3
{[%clk 0:02:33.5]} 8... Nbd7 {[%clk 0:02:29.5]} 9. Bd3 {[%clk 0:02:32.6]} 9...
b5 {[%clk 0:02:29.1]} 10. O-O {[%clk 0:02:26.8]} 10... Bb7 {[%clk 0:02:27.8]}
11. Rac1 {[%clk 0:02:18.3]} 11... a5 {[%clk 0:02:22.4]} 12. Ne2 {[%clk
0:02:10.8]} 12... b4 {[%clk 0:02:10.8]} 13. Ng3 {[%clk 0:01:57.6]} 13... c5
{[%clk 0:02:04.5]} 14. dxc5 {[%clk 0:01:51]} 14... Nxc5 {[%clk 0:01:52.7]} 15.
Nf5 {[%clk 0:01:50.4]} 15... Nxd3 {[%clk 0:01:50]} 16. Qxd3 {[%clk 0:01:43.6]}
16... Ba6 {[%clk 0:01:48.1]} 17. Qd4 {[%clk 0:01:29]} 17... Bxf1 {[%clk
0:01:43.5]} 18. Rc7 {[%clk 0:01:19.7]} 18... Re8 {[%clk 0:01:16.3]} 19. Kxf1
{[%clk 0:01:13]} 19... Rc8 {[%clk 0:01:14.8]} 20. Qa7 {[%clk 0:00:57.9]} 20...
Rxc7 {[%clk 0:01:12.4]} 21. Bxc7 {[%clk 0:00:58]} 21... Qd7 {[%clk 0:01:08.1]}
22. N3d4 {[%clk 0:00:58.2]} 22... Bf8 {[%clk 0:00:55.1]} 23. Qxa5 {[%clk
0:00:51.6]} 23... g6 {[%clk 0:00:45.4]} 24. Ng3 {[%clk 0:00:51.8]} 24... Rc8
{[%clk 0:00:35.1]} 25. Be5 {[%clk 0:00:49.4]} 25... Ne4 {[%clk 0:00:18]} 26.
Nxe4 {[%clk 0:00:49.3]} 26... dxe4 {[%clk 0:00:18.9]} 27. h3 {[%clk 0:00:45.7]}
27... Rc5 {[%clk 0:00:17.1]} 28. Qxb4 {[%clk 0:00:29.6]} 28... Rc1+ {[%clk
0:00:15.2]} 29. Qe1 {[%clk 0:00:27.8]} 29... Rxe1+ {[%clk 0:00:14.9]} 30. Kxe1
{[%clk 0:00:28.5]} 30... Qd5 {[%clk 0:00:14.7]} 31. Bf6 {[%clk 0:00:24.8]} 31...
Qxa2 {[%clk 0:00:14.3]} 32. Ne2 {[%clk 0:00:20.2]} 32... Bb4+ {[%clk 0:00:11.7]}
33. Bc3 {[%clk 0:00:13.8]} 33... Qb1+ {[%clk 0:00:11.6]} 34. Kd2 {[%clk
0:00:11.1]} 34... Qxb2+ {[%clk 0:00:11.8]} 0-1

[Event "Early-Titled-Tuesday-Blitz-March-26-2024"]
[Site "Chess.com"]
[Date "2024.03.26"]
[Round "6"]
[White "Veleamater"]
[Black "noblerone"]
[Result "0-1"]
[WhiteElo "2400"]
[BlackElo "2560"]
[TimeControl "180+1"]
[EndTime "9:04:41 PDT"]
[Termination "noblerone won by checkmate"]

1. g3 {[%clk 0:03:00.9]} 1... d5 {[%clk 0:02:59.5]} 2. Bg2 {[%clk 0:02:59.4]}
2... Nf6 {[%clk 0:02:59.8]} 3. d3 {[%clk 0:03:00]} 3... c6 {[%clk 0:03:00.2]} 4.
Nf3 {[%clk 0:03:00.6]} 4... Bg4 {[%clk 0:03:00.7]} 5. O-O {[%clk 0:03:01.1]}
5... Nbd7 {[%clk 0:03:01.2]} 6. h3 {[%clk 0:03:01.5]} 6... Bxf3 {[%clk 0:03:01]}
7. Bxf3 {[%clk 0:03:01.2]} 7... e6 {[%clk 0:03:01.9]} 8. Bg2 {[%clk 0:03:01.8]}
8... Bc5 {[%clk 0:03:02.2]} 9. Nc3 {[%clk 0:03:02.1]} 9... O-O {[%clk
0:03:02.5]} 10. e4 {[%clk 0:03:02.2]} 10... a5 {[%clk 0:03:01.2]} 11. Kh2 {[%clk
0:03:00.5]} 11... h6 {[%clk 0:02:44]} 12. a3 {[%clk 0:03:00.4]} 12... Ba7 {[%clk
0:02:36.8]} 13. f4 {[%clk 0:02:58.3]} 13... dxe4 {[%clk 0:02:35.8]} 14. dxe4
{[%clk 0:02:58.1]} 14... e5 {[%clk 0:02:32.9]} 15. Qe2 {[%clk 0:02:50.2]} 15...
Qe7 {[%clk 0:02:28.4]} 16. f5 {[%clk 0:02:49]} 16... Nh7 {[%clk 0:02:20.2]} 17.
g4 {[%clk 0:02:45.9]} 17... Rad8 {[%clk 0:02:12.8]} 18. Qe1 {[%clk 0:02:45.9]}
18... Kh8 {[%clk 0:01:55.6]} 19. Qg3 {[%clk 0:02:38.1]} 19... b5 {[%clk
0:01:49.2]} 20. h4 {[%clk 0:02:32]} 20... f6 {[%clk 0:01:37]} 21. b4 {[%clk
0:01:59.7]} 21... Bd4 {[%clk 0:01:33]} 22. Rb1 {[%clk 0:01:52.2]} 22... axb4
{[%clk 0:01:32.5]} 23. axb4 {[%clk 0:01:51.6]} 23... Nb6 {[%clk 0:01:33]} 24.
Ne2 {[%clk 0:01:51]} 24... Nc4 {[%clk 0:01:30.6]} 25. c3 {[%clk 0:01:47.1]}
25... Bb6 {[%clk 0:01:25.6]} 26. g5 {[%clk 0:01:46.5]} 26... fxg5 {[%clk
0:01:23.7]} 27. hxg5 {[%clk 0:01:46.3]} 27... Nxg5 {[%clk 0:01:23.6]} 28. Bxg5
{[%clk 0:01:45.9]} 28... Qxg5 {[%clk 0:01:24.5]} 29. Qxg5 {[%clk 0:01:44.8]}
29... hxg5 {[%clk 0:01:25.4]} 30. Rh1 {[%clk 0:01:37.3]} 30... Kg8 {[%clk
0:01:22.9]} 31. Rbd1 {[%clk 0:01:27.4]} 31... Bf2 {[%clk 0:01:12.3]} 32. Bf3
{[%clk 0:01:23]} 32... Ne3 {[%clk 0:01:06.1]} 33. Ra1 {[%clk 0:01:18.2]} 33...
g4 {[%clk 0:01:01.2]} 34. Bg2 {[%clk 0:01:13.9]} 34... Rd2 {[%clk 0:01:00.9]}
35. Ng3 {[%clk 0:00:59.4]} 35... Kf7 {[%clk 0:00:51.7]} 36. Ra7+ {[%clk
0:00:50.9]} 36... Kf6 {[%clk 0:00:29]} 37. Nh5+ {[%clk 0:00:50]} 37... Kg5
{[%clk 0:00:29.5]} 38. Rxg7+ {[%clk 0:00:45.6]} 38... Kxh5 {[%clk 0:00:27.8]}
39. Bf1 {[%clk 0:00:24.1]} 39... Kh4 {[%clk 0:00:17]} 40. Rh7+ {[%clk
0:00:21.4]} 40... Kg5 {[%clk 0:00:16.8]} 41. Rg7+ {[%clk 0:00:21.7]} 41... Kf4
{[%clk 0:00:17.1]} 42. Rg6 {[%clk 0:00:22.2]} 42... Rh8+ {[%clk 0:00:15.6]} 43.
Bh3 {[%clk 0:00:21]} 43... Rxh3# {[%clk 0:00:15.2]} 0-1

[Event "Early-Titled-Tuesday-Blitz-March-26-2024"]
[Site "Chess.com"]
[Date "2024.03.26"]
[Round "6"]
[White "Josgar05"]
[Black "stratacticos"]
[Result "1-0"]
[WhiteElo "2354"]
[BlackElo "1862"]
[TimeControl "180+1"]
[EndTime "9:04:43 PDT"]
[Termination "Josgar05 won on time"]

1. Nf3 {[%clk 0:03:00.9]} 1... c5 {[%clk 0:02:58.8]} 2. e4 {[%clk 0:02:58]} 2...
Nc6 {[%clk 0:02:58.1]} 3. Nc3 {[%clk 0:02:53.3]} 3... a6 {[%clk 0:02:55.2]} 4.
d4 {[%clk 0:02:42.9]} 4... cxd4 {[%clk 0:02:54.3]} 5. Nxd4 {[%clk 0:02:43]} 5...
e5 {[%clk 0:02:52.4]} 6. Nde2 {[%clk 0:02:26.6]} 6... Nf6 {[%clk 0:02:47.4]} 7.
Be3 {[%clk 0:02:22.4]} 7... Bb4 {[%clk 0:02:44.1]} 8. a3 {[%clk 0:02:20.6]} 8...
Be7 {[%clk 0:02:26.3]} 9. h3 {[%clk 0:02:19.4]} 9... O-O {[%clk 0:02:24.7]} 10.
Ng3 {[%clk 0:02:19.6]} 10... d6 {[%clk 0:02:20.7]} 11. Be2 {[%clk 0:02:11.9]}
11... Be6 {[%clk 0:02:16.6]} 12. Nd5 {[%clk 0:02:01.9]} 12... Bxd5 {[%clk
0:02:06.4]} 13. exd5 {[%clk 0:02:01]} 13... Nb8 {[%clk 0:02:06.1]} 14. O-O
{[%clk 0:01:54.5]} 14... g6 {[%clk 0:01:59.9]} 15. c4 {[%clk 0:01:38.3]} 15...
Nbd7 {[%clk 0:01:56.6]} 16. b4 {[%clk 0:01:37.8]} 16... Rc8 {[%clk 0:01:53.7]}
17. Rc1 {[%clk 0:01:37]} 17... b6 {[%clk 0:01:52.3]} 18. Kh1 {[%clk 0:01:30.8]}
18... Kg7 {[%clk 0:01:40.2]} 19. Qd2 {[%clk 0:01:30.2]} 19... Ng8 {[%clk
0:01:39.6]} 20. f4 {[%clk 0:01:21.5]} 20... f5 {[%clk 0:01:34.1]} 21. fxe5
{[%clk 0:01:18.1]} 21... Nxe5 {[%clk 0:01:25.8]} 22. Rfd1 {[%clk 0:01:10.4]}
22... Bh4 {[%clk 0:01:17.7]} 23. Nf1 {[%clk 0:00:53.8]} 23... Nf6 {[%clk
0:01:10.7]} 24. Qd4 {[%clk 0:00:44.1]} 24... Ne4 {[%clk 0:01:05.9]} 25. Qxb6
{[%clk 0:00:44.2]} 25... Qxb6 {[%clk 0:00:28.1]} 26. Bxb6 {[%clk 0:00:45.1]}
26... Nf2+ {[%clk 0:00:27.4]} 27. Bxf2 {[%clk 0:00:44.8]} 27... Bxf2 {[%clk
0:00:27.1]} 28. Rc3 {[%clk 0:00:40.7]} 28... g5 {[%clk 0:00:22.1]} 29. Nd2
{[%clk 0:00:39.5]} 29... Kg6 {[%clk 0:00:19.6]} 30. Nf3 {[%clk 0:00:39.2]} 30...
Nxf3 {[%clk 0:00:16.9]} 31. Bxf3 {[%clk 0:00:40.1]} 31... h5 {[%clk 0:00:16.6]}
32. Rc2 {[%clk 0:00:34.3]} 32... Bg3 {[%clk 0:00:14.1]} 33. c5 {[%clk
0:00:31.7]} 33... g4 {[%clk 0:00:11.5]} 34. Be2 {[%clk 0:00:31.8]} 34... Rfe8
{[%clk 0:00:10.8]} 35. c6 {[%clk 0:00:29.9]} 35... gxh3 {[%clk 0:00:03.2]} 36.
gxh3 {[%clk 0:00:30.8]} 36... Kf6 {[%clk 0:00:03]} 37. Bxa6 {[%clk 0:00:29.9]}
37... Ra8 {[%clk 0:00:01.6]} 38. Bb5 {[%clk 0:00:30]} 38... Rxa3 {[%clk
0:00:01.1]} 39. c7 {[%clk 0:00:30.5]} 1-0

[Event "Early-Titled-Tuesday-Blitz-March-26-2024"]
[Site "Chess.com"]
[Date "2024.03.26"]
[Round "6"]
[White "vlad10898"]
[Black "Suleyman_Chess06"]
[Result "0-1"]
[WhiteElo "2874"]
[BlackElo "2715"]
[TimeControl "180+1"]
[EndTime "9:04:46 PDT"]
[Termination "Suleyman_Chess06 won by checkmate"]

1. e4 {[%clk 0:02:59.9]} 1... e6 {[%clk 0:03:00.3]} 2. d4 {[%clk 0:02:56.6]}
2... d5 {[%clk 0:03:01.2]} 3. Nd2 {[%clk 0:02:54.4]} 3... a6 {[%clk 0:02:58.8]}
4. Bd3 {[%clk 0:02:51.2]} 4... c5 {[%clk 0:02:58.8]} 5. dxc5 {[%clk 0:02:48.3]}
5... Bxc5 {[%clk 0:02:58]} 6. Ngf3 {[%clk 0:02:46.4]} 6... Nf6 {[%clk
0:02:58.5]} 7. O-O {[%clk 0:02:44.9]} 7... dxe4 {[%clk 0:02:57.1]} 8. Nxe4
{[%clk 0:02:45]} 8... Nxe4 {[%clk 0:02:57.7]} 9. Bxe4 {[%clk 0:02:45.9]} 9...
Qxd1 {[%clk 0:02:57.7]} 10. Rxd1 {[%clk 0:02:46.8]} 10... Nd7 {[%clk 0:02:54.7]}
11. Nd2 {[%clk 0:02:26]} 11... Nf6 {[%clk 0:02:53.4]} 12. Bf3 {[%clk 0:02:26.1]}
12... e5 {[%clk 0:02:30.9]} 13. Re1 {[%clk 0:02:26.1]} 13... O-O {[%clk
0:02:20]} 14. Rxe5 {[%clk 0:02:25.1]} 14... Bd4 {[%clk 0:02:20.6]} 15. Re1
{[%clk 0:02:24.1]} 15... Be6 {[%clk 0:02:20.5]} 16. c3 {[%clk 0:02:16.9]} 16...
Ba7 {[%clk 0:02:18.6]} 17. Bxb7 {[%clk 0:02:15.5]} 17... Rab8 {[%clk 0:02:18.8]}
18. Bxa6 {[%clk 0:02:09.7]} 18... Ng4 {[%clk 0:02:19.3]} 19. Rf1 {[%clk
0:01:59.5]} 19... Rfd8 {[%clk 0:02:19.5]} 20. h3 {[%clk 0:01:55.1]} 20... Ne5
{[%clk 0:02:19]} 21. Nb3 {[%clk 0:01:31.5]} 21... Bc4 {[%clk 0:02:03.6]} 22.
Bxc4 {[%clk 0:01:27.6]} 22... Nxc4 {[%clk 0:02:04.5]} 23. Re1 {[%clk 0:01:17.7]}
23... h6 {[%clk 0:02:01]} 24. Kf1 {[%clk 0:01:17.2]} 24... Rb7 {[%clk
0:01:59.5]} 25. Rb1 {[%clk 0:01:16.7]} 25... g5 {[%clk 0:01:49.2]} 26. Be3
{[%clk 0:00:58]} 26... Bxe3 {[%clk 0:01:46.8]} 27. fxe3 {[%clk 0:00:58.9]} 27...
Ra8 {[%clk 0:01:41]} 28. Re2 {[%clk 0:00:34.9]} 28... Rxa2 {[%clk 0:01:38.8]}
29. Nd2 {[%clk 0:00:33.1]} 29... Nxb2 {[%clk 0:01:05.9]} 30. Nc4 {[%clk
0:00:28]} 30... Nd3 {[%clk 0:01:06.2]} 31. Rd1 {[%clk 0:00:20.5]} 31... Rxe2
{[%clk 0:00:55.4]} 32. Kxe2 {[%clk 0:00:20.7]} 32... Nc5 {[%clk 0:00:56]} 33.
Nd6 {[%clk 0:00:19.9]} 33... Rb2+ {[%clk 0:00:54]} 34. Rd2 {[%clk 0:00:19.8]}
34... Rb3 {[%clk 0:00:50.9]} 35. c4 {[%clk 0:00:20.2]} 35... Rc3 {[%clk
0:00:47.5]} 36. Rd5 {[%clk 0:00:19.9]} 36... Ne6 {[%clk 0:00:44.2]} 37. Kd2
{[%clk 0:00:18.4]} 37... Ra3 {[%clk 0:00:43.9]} 38. g4 {[%clk 0:00:17.8]} 38...
Ra2+ {[%clk 0:00:41.4]} 39. Kd3 {[%clk 0:00:18]} 39... Ra3+ {[%clk 0:00:32.6]}
40. Ke4 {[%clk 0:00:17]} 40... Kg7 {[%clk 0:00:30.5]} 41. Kf5 {[%clk 0:00:09.8]}
41... Rxe3 {[%clk 0:00:26.2]} 42. Ne8+ {[%clk 0:00:09.3]} 42... Kf8 {[%clk
0:00:23.3]} 43. Nf6 {[%clk 0:00:09.9]} 43... Ng7# {[%clk 0:00:23.6]} 0-1